fUSD/lending_fUSD_20240518
["ID","MTS","AMOUNT","RATE_DAILY","PERIOD"]
[327381747,1716033043454,-869.28,0.00035452,2]
[327381748,1716033043465,-869.28,0.00035452,2]
[327381749,1716033043474,-869.28,0.00035452,2]
[327381750,1716033043483,-869.28,0.00035452,2]
[327381751,1716033043493,-224.44272412,0.00035531,3]
[327381752,1716033043502,-430.76,0.00035561,2]
[327381753,1716033043511,-150.0,0.00035596,2]
[327381754,1716033043521,-170.35592764,0.000356,2]
[327381755,1716033043530,-999.04292246,0.000356,30]
[327381756,1716033043540,-32603.68412573,0.000356,2]
[327381757,1716033043553,-12499.66637255,0.000356,2]
[327381758,1716033043563,-175.98,0.00035606,2]
[327381759,1716033043572,-385.37,0.00035613,9]
[327381760,1716033043582,-500.0,0.00035613,9]
[327381761,1716033043591,-500.0,0.00035613,9]
[327381762,1716033043601,-642.99,0.00035613,9]
[327381763,1716033043610,-764.4,0.00035613,9]
[327381764,1716033043620,-500.0,0.00035613,9]
[327381765,1716033043629,-500.0,0.00035613,9]
[327381766,1716033043640,-570.83,0.00035613,9]
[327381767,1716033043650,-500.0,0.00035613,9]
[327381768,1716033043659,-840.28,0.00035613,9]
[327381769,1716033043668,-500.0,0.00035613,9]
[327381770,1716033043678,-550.84,0.00035613,9]
[327381771,1716033043688,-500.0,0.00035613,9]
[327381772,1716033043697,-500.0,0.00035613,9]
[327381773,1716033043707,-500.0,0.00035613,9]
[327381774,1716033043716,-500.0,0.00035613,9]
[327381775,1716033043726,-635.32,0.00035613,9]
[327381776,1716033043735,-685.95,0.00035613,9]
[327381777,1716033043745,-500.0,0.00035613,9]
[327381778,1716033043755,-647.61,0.00035613,9]
[327381779,1716033043764,-696.56,0.00035613,9]
[327381780,1716033043774,-500.0,0.00035613,9]
[327381781,1716033043783,-500.0,0.00035613,9]
[327381782,1716033043794,-1050.72,0.00035613,9]
[327381783,1716033043804,-500.0,0.00035613,9]
[327381784,1716033043814,-761.95,0.00035613,9]
[327381785,1716033043824,-1505.19,0.00035613,9]
[327381786,1716033043833,-500.0,0.00035613,9]
[327381787,1716033043843,-680.28,0.00035613,9]
[327381788,1716033043852,-500.0,0.00035613,9]
[327381789,1716033043862,-500.0,0.00035613,9]
[327381790,1716033043871,-500.0,0.00035613,9]
[327381791,1716033043881,-500.0,0.00035613,9]
[327381792,1716033043892,-500.0,0.00035613,9]
[327381793,1716033043902,-634.87,0.00035613,9]
[327381794,1716033043912,-744.81,0.00035613,9]
[327381795,1716033043922,-7310.56,0.00035613,9]
[327381796,1716033043932,-3023.22,0.00035613,9]
[327381797,1716033043941,-2174.99,0.00035613,9]
[327381798,1716033043951,-500.0,0.00035613,9]
[327381799,1716033043961,-962.66,0.00035613,9]
[327381800,1716033043970,-1726.18,0.00035613,9]
[327381801,1716033043979,-735.1,0.00035613,9]
[327381802,1716033043989,-500.0,0.00035613,9]
[327381803,1716033043998,-500.0,0.00035613,9]
[327381804,1716033044009,-500.0,0.00035613,9]
[327381805,1716033044019,-500.0,0.00035613,9]
[327381806,1716033044029,-500.0,0.00035613,9]
[327381807,1716033044040,-941.61,0.00035613,9]
[327381808,1716033044049,-1033.59,0.00035613,9]
[327381809,1716033044059,-606.38,0.00035613,9]
[327381810,1716033044068,-618.73,0.00035613,9]
[327381811,1716033044078,-757.59,0.00035613,9]
[327381812,1716033044088,-500.0,0.00035613,9]
[327381813,1716033044098,-1827.44927632,0.00035613,9]
[327381814,1716033044110,-613.51072368,0.00035613,9]
[327381815,1716033044120,-500.0,0.00035613,9]
[327381816,1716033044129,-500.0,0.00035613,9]
[327381817,1716033044141,-228.34240607,0.00035613,9]
[327381818,1716033044152,-271.65759393,0.00035613,9]
[327381819,1716033044162,-965.58,0.00035613,9]
[327381820,1716033044171,-3407.75,0.00035613,9]
[327381821,1716033044181,-1079.44,0.00035613,9]
[327381822,1716033044191,-5242.14,0.00035613,9]
[327381823,1716033044200,-500.0,0.00035613,9]
[327381824,1716033044210,-500.0,0.00035613,9]
[327381825,1716033044220,-500.0,0.00035613,9]
[327381826,1716033044230,-2213.85,0.00035613,9]
[327381827,1716033044239,-819.49,0.00035613,9]
[327381828,1716033044249,-500.0,0.00035613,9]
[327381829,1716033044259,-500.0,0.00035613,9]
[327381830,1716033044269,-585.68,0.00035613,9]
[327381831,1716033044278,-500.0,0.00035613,9]
[327381832,1716033044289,-500.0,0.00035613,9]
[327381833,1716033044299,-557.08,0.00035613,9]
[327381834,1716033044308,-8143.72,0.00035613,9]
[327381835,1716033044318,-500.0,0.00035613,9]
[327381836,1716033044327,-500.0,0.00035613,9]
[327381837,1716033044337,-3523.28,0.00035613,9]
[327381838,1716033044346,-922.63,0.00035613,9]
[327381839,1716033044356,-1321.05,0.00035613,9]
[327381840,1716033044366,-3286.81,0.00035613,9]
[327381841,1716033044378,-527.37,0.00035613,9]
[327381842,1716033044390,-500.0,0.00035613,9]
[327381843,1716033044399,-654.56,0.00035613,9]
[327381844,1716033044407,-500.0,0.00035613,9]
[327381845,1716033044418,-1886.49,0.00035613,9]
[327381846,1716033044427,-684.46,0.00035613,9]
[327381847,1716033044437,-710.41,0.00035613,9]
[327381848,1716033044447,-500.0,0.00035613,9]
[327381849,1716033044459,-695.97,0.00035613,9]
[327381850,1716033044469,-2384.8,0.00035613,9]
[327381851,1716033044478,-500.0,0.00035613,9]
[327381852,1716033044487,-1299.55,0.00035613,9]
[327381853,1716033044497,-621.18,0.00035613,9]
[327381854,1716033044506,-500.0,0.00035613,9]
[327381855,1716033044515,-2337.40356961,0.00035613,9]
[327381856,1716033044528,-621.91316261,0.00035613,9]
[327381857,1716033044540,-411.77326778,0.00035613,9]
[327381858,1716033044550,-613.69,0.00035613,9]
[327381859,1716033044560,-896.68,0.00035613,9]
[327381860,1716033044570,-1215.67,0.00035613,2]
[327381861,1716033044580,-1622.5,0.00035613,9]
[327381862,1716033044590,-933.66,0.00035613,9]
[327381863,1716033044599,-500.0,0.00035613,9]
[327381864,1716033044608,-383.3388246,0.00035613,9]
[327381865,1716033044629,-116.6611754,0.00035613,9]
[327381866,1716033044641,-346.7388241,0.00035613,9]
[327381867,1716033044652,-153.2611759,0.00035613,9]
[327381868,1716033044662,-1313.72,0.00035613,9]
[327381869,1716033044671,-425.58195655,0.00035613,9]
[327381881,1716033045596,-650.65,0.00035338,4]
[327381882,1716033045608,-554.54634876,0.00035338,4]
[327381883,1716033045617,-95.80509224,0.00035338,4]
[327381884,1716033045629,-263.97064949,0.00035338,4]
[327381885,1716033045640,-826.01,0.00035339,9]
[327381886,1716033045650,-500.0,0.00035339,9]
[327381887,1716033045659,-500.0,0.00035339,9]
[327381888,1716033045668,-74.41804345,0.00035613,9]
[327381889,1716033045677,-500.0,0.00035613,9]
[327381890,1716033045686,-2227.74,0.00035613,9]
[327381891,1716033045695,-500.0,0.00035613,9]
[327381892,1716033045705,-627.74,0.00035613,9]
[327381893,1716033045714,-500.0,0.00035613,9]
[327381894,1716033045724,-500.0,0.00035613,9]
[327381895,1716033045733,-500.0,0.00035613,9]
[327381896,1716033045742,-9903.84,0.00035613,9]
[327381897,1716033045752,-500.0,0.00035613,9]
[327381898,1716033045763,-500.0,0.00035613,9]
[327381899,1716033045772,-529.23,0.00035613,9]
[327381900,1716033045782,-89.01787962,0.00035613,9]
[327381904,1716033046072,-487.45212038,0.00035613,9]
[327381905,1716033046082,-500.0,0.00035613,9]
[327381906,1716033046092,-748.54,0.00035613,9]
[327381907,1716033046102,-502.25,0.00035613,9]
[327381908,1716033046111,-500.0,0.00035613,9]
[327381909,1716033046121,-1408.40742968,0.00035613,9]
[327381910,1716033046133,-1678.4255429,0.00035613,9]
[327381911,1716033046147,-332.55378153,0.00035613,9]
[327381912,1716033046158,-721.69767524,0.00035613,9]
[327381913,1716033046175,-392.68632983,0.00035613,9]
[327381914,1716033046186,-255.5202649,0.00035613,9]
[327381915,1716033046198,-1006.8,0.00035613,9]
[327381916,1716033046222,-790.12443875,0.00035613,9]
[327381917,1716033046234,-2221.47453717,0.00035613,9]
[327381918,1716033046244,-826.01,0.00035613,9]
[327381919,1716033046254,-500.0,0.00035613,9]
[327381920,1716033046264,-1493.47528518,0.00035613,2]
[327381921,1716033046280,-629.27928532,0.00035613,2]
[327381922,1716033046292,-2586.43912424,0.00035613,2]
[327381923,1716033046302,-500.0,0.00035615,9]
[327381924,1716033046312,-500.0,0.00035615,9]
[327381925,1716033046322,-500.0,0.00035615,9]
[327381926,1716033046331,-500.0,0.00035615,9]
[327381927,1716033046341,-451.73513898,0.00035616,14]
[327381928,1716033046351,-13381.99741206,0.00035616,5]
[327381929,1716033046361,-1606.92194789,0.00035616,4]
[327381930,1716033046374,-155.0,0.00035616,2]
[327381931,1716033046385,-1609.74596226,0.00035616,5]
[327381932,1716033046395,-500.0,0.00035616,9]
[327381933,1716033046406,-500.0,0.00035616,9]
[327381934,1716033046416,-500.0,0.00035616,9]
[327381935,1716033046427,-500.0,0.00035616,9]
[327381936,1716033046437,-500.0,0.00035616,9]
[327381937,1716033046450,-535.21323206,0.00035616,9]
[327381938,1716033046461,-168.57745051,0.00035616,9]
[327381939,1716033047247,155.0,0.00017259,2]
[327381940,1716033049884,263.02958027,0.00017259,2]
[327381941,1716033056682,409.50716018,0.00019451,2]
[327381942,1716033059899,6822.08,0.00024,120]
[327381943,1716033062917,150.0,0.00019725,2]
[327381944,1716033098035,35357.46203519,0.00017259,2]
[327381945,1716033116337,298.83142374,0.00019725,2]
[327381946,1716033120589,393738.05565404,0.00019725,2]
[327381948,1716033130832,196.01985805,0.00019725,2]
[327381949,1716033243163,150.0,0.00019725,2]
[327381950,1716033252151,152.86,0.00013973,2]
[327381956,1716033635898,428.3967097,0.00019725,2]
[327381957,1716033678251,267.77594492,0.00019725,2]
[327381959,1716033776432,158.32,0.00013973,2]
[327381960,1716033945640,35357.46203519,0.00017259,2]
[327381964,1716034100522,4086.89206776,0.00019451,2]
[327381967,1716034117811,267.77594492,0.00019725,2]
[327381970,1716034148003,428.3967097,0.00019725,2]
[327382038,1716034231785,-443.7326138,0.00021597,2]
[327382039,1716034231854,-263.2673862,0.00021597,2]
[327382040,1716034231864,-10019.6839,0.00021598,2]
[327382041,1716034231875,-336.22001059,0.00025,7]
[327382042,1716034231884,-1198.11092334,0.00025,2]
[327382043,1716034231894,-3089.57,0.00025,2]
[327382044,1716034231904,-999.99,0.00025,2]
[327382045,1716034231913,-152.37,0.00028172,2]
[327382046,1716034231922,-500.0,0.00029667,2]
[327382047,1716034231932,-352.51,0.00029771,2]
[327382048,1716034231941,-499.99,0.00029771,2]
[327382049,1716034231952,-480.0,0.00029872,2]
[327382050,1716034231962,-9367.39818844,0.0003,5]
[327382051,1716034231971,-155.0,0.0003,2]
[327382052,1716034231981,-8327.66441483,0.0003,4]
[327382053,1716034231991,-4782.89,0.0003,2]
[327382054,1716034232000,-4000.0,0.0003001,3]
[327382055,1716034232009,-250.0,0.00030016,2]
[327382056,1716034232019,-502.19,0.00030051,2]
[327382057,1716034232028,-2000.0,0.00030071,2]
[327382058,1716034232038,-250.0,0.0003009,2]
[327382059,1716034232048,-250.0,0.00030101,2]
[327382060,1716034232058,-4845.38,0.00030103,2]
[327382061,1716034232067,-300.0,0.00030105,2]
[327382062,1716034232077,-3718.25,0.00030128,2]
[327382063,1716034232086,-181.16,0.00030159,120]
[327382065,1716034232095,-3153.91,0.00030183,2]
[327382067,1716034232105,-23900.0,0.00030192,2]
[327382069,1716034232113,-10000.0,0.00030202,2]
[327382071,1716034232122,-500.0,0.00030215,2]
[327382073,1716034232131,-177.8,0.00030383,2]
[327382075,1716034232140,-359.77574173,0.00031656,4]
[327382077,1716034232149,-870.9,0.00031657,2]
[327382079,1716034232159,-165.24,0.00031773,120]
[327382081,1716034232168,-745.43664057,0.00031975,4]
[327382083,1716034232178,-485.13255039,0.00032681,4]
[327382084,1716034232187,-161.25,0.00032689,2]
[327382086,1716034232196,-161.25,0.00032689,2]
[327382088,1716034232205,-161.25,0.00032689,2]
[327382090,1716034232214,-163.89192495,0.00032691,2]
[327382092,1716034232223,-783.52135115,0.00032692,2]
[327382093,1716034232232,-162.57544654,0.00032692,4]
[327382095,1716034232242,-1380.55997718,0.00032693,4]
[327382097,1716034232251,-6871.14697189,0.00032694,4]
[327382099,1716034232261,-500.0,0.00032695,4]
[327382101,1716034232271,-323445.86173074,0.00032699,2]
[327382112,1716034232367,-541.50188124,0.00032699,2]
[327382113,1716034232378,-1320.12980124,0.00032699,2]
[327382114,1716034232389,-1074.50342781,0.00032699,2]
[327382115,1716034232408,-6462.85134193,0.00032699,2]
[327382119,1716034237877,-8371.89990176,0.00032696,2]
[327382120,1716034237887,-70718.64506821,0.00032699,2]
[327382121,1716034237899,-117797.13248238,0.00032699,2]
[327382122,1716034237933,-7500.45083114,0.00032699,2]
[327382123,1716034238100,-483.00351318,0.00032699,2]
[327382124,1716034238112,-450.89332225,0.00032699,2]
[327382125,1716034238124,-942.96050353,0.00032699,2]
[327382126,1716034238264,-540.68765903,0.00032699,2]
[327382234,1716034239991,-6725.10422183,0.00032699,2]
[327382589,1716034245819,-2304.13470654,0.00032698,2]
[327382590,1716034246043,-2478.75529346,0.00032698,2]
[327382591,1716034246053,-359.77574173,0.00032698,4]
[327382592,1716034246062,-354438.23463473,0.00032699,2]
[327382593,1716034248781,156.0,0.00013973,2]
[327382594,1716034284738,2917.62814484,0.00017259,2]
[327382595,1716034287229,2917.62814484,0.00019451,2]
[327382596,1716034291772,2917.62814484,0.00019451,2]
[327382597,1716034296229,2917.62814484,0.00019451,2]
[327382605,1716034738398,2917.62814484,0.00019451,2]
[327382606,1716034770247,2173.83371,0.00019451,2]
[327382608,1716035170148,473.6918751,0.0002,2]
[327382613,1716035300220,155.52,0.00013973,2]
[327382681,1716035423103,540.68765903,0.00017259,2]
[327382687,1716035431920,-773.89185516,0.00024999,2]
[327382688,1716035431929,-2917.62814484,0.00024999,2]
[327382690,1716035431939,-2917.62814484,0.00024999,2]
[327382692,1716035431950,-2917.62814484,0.00024999,2]
[327382694,1716035431960,-2917.62814484,0.00024999,2]
[327382695,1716035431969,-1198.11092334,0.00025,2]
[327382696,1716035431978,-243.35993903,0.00025,7]
[327382697,1716035431999,-92.86007156,0.00025,7]
[327382698,1716035432009,-263.16215283,0.00028399,2]
[327382699,1716035432019,-1098.0,0.000284,2]
[327382700,1716035432028,-154.13,0.0002884,2]
[327382701,1716035432038,-250.0,0.00029972,2]
[327382702,1716035432048,-155.0,0.0003,2]
[327382703,1716035432057,-3602.44257493,0.0003,5]
[327382704,1716035432077,-811.05669613,0.0003,5]
[327382705,1716035432089,-4953.89891738,0.0003,5]
[327382706,1716035432098,-1713.30888262,0.0003,2]
[327382707,1716035432110,-3069.58111738,0.0003,2]
[327382708,1716035432121,-384.0,0.00030108,2]
[327382709,1716035432131,-143.9577306,0.00030295,3]
[327382710,1716035432152,-668.1020005,0.00030295,3]
[327382711,1716035432164,-1187.9402689,0.00030295,3]
[327382712,1716035432173,-250.0,0.00030295,2]
[327382713,1716035432183,-334.12,0.00030296,2]
[327382714,1716035432193,-2000.0,0.00030298,2]
[327382715,1716035432203,-250.0,0.00030336,2]
[327382716,1716035432214,-23900.0,0.00030472,2]
[327382717,1716035432224,-500.0,0.00030496,2]
[327382718,1716035432234,-165.24,0.00030595,120]
[327382719,1716035432244,-269.71810869,0.00031,2]
[327382720,1716035432253,-177.8,0.00031176,2]
[327382721,1716035432264,-1202.59042239,0.0003237,2]
[327382722,1716035432276,-608.93766761,0.0003237,2]
[327382723,1716035432285,-34307.65713902,0.00032379,10]
[327382724,1716035432295,-48131.55161371,0.0003238,2]
[327382725,1716035432311,-4000.0,0.0003238,2]
[327382726,1716035432327,-18640.80592093,0.0003238,2]
[327382727,1716035432336,-1564.60657979,0.00032406,2]
[327382728,1716035432345,-150.0,0.0003269,2]
[327382729,1716035432354,-4013.37885964,0.00032699,2]
[327382750,1716035437991,-25472.1102002,0.00032699,2]
[327382751,1716035438001,-700.0,0.000328,11]
[327382752,1716035438012,-160.44,0.00032866,2]
[327382753,1716035438022,-160.44,0.00032866,2]
[327382754,1716035438031,-155.0,0.00032874,4]
[327382755,1716035438042,-155.11805651,0.00032874,4]
[327382756,1716035438051,-205.13514896,0.00032874,4]
[327382757,1716035438060,-170.63079943,0.00032875,4]
[327382758,1716035438069,-3282.80859403,0.00032875,4]
[327382759,1716035438079,-426.1312614,0.00032875,4]
[327382760,1716035438088,-500.0,0.00032876,2]
[327382761,1716035438098,-500.0,0.00032876,2]
[327382762,1716035438108,-500.0,0.00032876,2]
[327382763,1716035438118,-500.0,0.00032876,2]
[327382764,1716035438128,-500.0,0.00032876,2]
[327382765,1716035438138,-503.22,0.00032876,2]
[327382766,1716035438151,-3160.52,0.00032876,2]
[327382767,1716035438160,-500.0,0.00032876,2]
[327382768,1716035438170,-505.96,0.00032876,2]
[327382769,1716035438180,-500.0,0.00032876,2]
[327382770,1716035438191,-500.0,0.00032876,2]
[327382771,1716035438201,-500.0,0.00032876,2]
[327382772,1716035438211,-507.3,0.00032876,2]
[327382773,1716035438221,-500.0,0.00032876,2]
[327382774,1716035438232,-500.0,0.00032876,2]
[327382775,1716035438242,-499.85939498,0.00032876,2]
[327382776,1716035438252,-500.0,0.00032876,2]
[327382777,1716035438263,-500.0,0.00032876,2]
[327382778,1716035438273,-38.85600931,0.00032876,2]
[327382779,1716035438285,-19961.14399069,0.00032876,2]
[327382780,1716035438296,-500.0,0.00032876,2]
[327382781,1716035438306,-500.0,0.00032876,2]
[327382782,1716035438316,-500.0,0.00032876,2]
[327382783,1716035438326,-500.0,0.00032876,2]
[327382784,1716035438335,-500.0,0.00032876,2]
[327382785,1716035438345,-2523.76,0.00032876,2]
[327382786,1716035438355,-2262.38,0.00032876,2]
[327382787,1716035438365,-500.0,0.00032876,2]
[327382788,1716035438374,-500.0,0.00032876,2]
[327382789,1716035438384,-500.0,0.00032876,2]
[327382790,1716035438393,-500.0,0.00032876,2]
[327382791,1716035438403,-623.63,0.00032876,2]
[327382792,1716035438412,-500.0,0.00032876,2]
[327382793,1716035438423,-500.0,0.00032876,2]
[327382794,1716035438433,-2090.87,0.00032876,2]
[327382795,1716035438442,-500.0,0.00032876,2]
[327382796,1716035438450,-1457.29,0.00032876,2]
[327382797,1716035438460,-563.06,0.00032876,2]
[327382798,1716035438471,-2685.54,0.00032876,2]
[327382799,1716035438480,-491.3866717,0.00032876,2]
[327382800,1716035438489,-500.0,0.00032876,2]
[327382801,1716035438498,-2048.33,0.00032876,2]
[327382802,1716035438508,-500.0,0.00032876,2]
[327382803,1716035438517,-500.0,0.00032876,2]
[327382804,1716035438526,-500.0,0.00032876,2]
[327382805,1716035438536,-500.0,0.00032876,2]
[327382806,1716035438546,-500.0,0.00032876,2]
[327382808,1716035438555,-820.15,0.00032876,2]
[327382809,1716035438565,-500.0,0.00032876,2]
[327382811,1716035438575,-500.0,0.00032876,2]
[327382813,1716035438584,-500.0,0.00032876,2]
[327382815,1716035438593,-500.0,0.00032876,2]
[327382817,1716035438602,-2437.48,0.00032876,2]
[327382819,1716035438612,-500.0,0.00032876,2]
[327382821,1716035438621,-500.0,0.00032876,2]
[327382823,1716035438630,-500.0,0.00032876,2]
[327382825,1716035438640,-2090.86,0.00032876,2]
[327382827,1716035438649,-500.0,0.00032876,2]
[327382829,1716035438659,-500.0,0.00032876,2]
[327382831,1716035438668,-500.0,0.00032876,2]
[327382833,1716035438677,-2599.37,0.00032876,2]
[327382835,1716035438687,-500.0,0.00032876,2]
[327382837,1716035438696,-500.0,0.00032876,2]
[327382840,1716035438706,-2923.34,0.00032876,2]
[327382842,1716035438715,-500.0,0.00032876,2]
[327382844,1716035438726,-500.0,0.00032876,2]
[327382846,1716035438736,-500.0,0.00032876,2]
[327382848,1716035438745,-500.0,0.00032876,2]
[327382850,1716035438755,-500.0,0.00032876,2]
[327382852,1716035438767,-500.0,0.00032876,2]
[327382854,1716035438776,-500.0,0.00032876,2]
[327382856,1716035438785,-500.0,0.00032876,2]
[327382858,1716035438795,-500.0,0.00032876,2]
[327382860,1716035438804,-500.0,0.00032876,2]
[327382862,1716035438813,-500.0,0.00032876,2]
[327382864,1716035438822,-215.40900055,0.00032876,2]
[327382923,1716035439381,-284.59099945,0.00032876,2]
[327382925,1716035439391,-439.6688982,0.00032876,2]
[327382929,1716035439424,-60.3311018,0.00032876,2]
[327382931,1716035439435,-522.36,0.00032876,2]
[327382933,1716035439446,-500.0,0.00032876,2]
[327382935,1716035439457,-117.3088982,0.00032876,2]
[327382939,1716035439483,-382.6911018,0.00032876,2]
[327382941,1716035439493,-282.3688982,0.00032876,2]
[327383017,1716035440237,-217.6311018,0.00032876,2]
[327383019,1716035440247,-626.75,0.00032876,2]
[327383021,1716035440257,-500.0,0.00032876,2]
[327383024,1716035440268,-224.59389819,0.00032876,2]
[327383262,1716035443082,-275.40610181,0.00032876,2]
[327383265,1716035443091,-500.0,0.00032876,2]
[327383268,1716035443101,-500.0,0.00032876,2]
[327383271,1716035443110,-500.0,0.00032876,2]
[327383274,1716035443119,-164.89,0.00032876,2]
[327383276,1716035443128,-500.0,0.00032876,2]
[327383279,1716035443137,-500.0,0.00032876,2]
[327383282,1716035443149,-500.0,0.00032876,2]
[327383284,1716035443159,-500.0,0.00032876,2]
[327383287,1716035443168,-500.0,0.00032876,2]
[327383291,1716035443177,-500.0,0.00032876,2]
[327383294,1716035443187,-500.0,0.00032876,2]
[327383295,1716035443196,-500.0,0.00032876,2]
[327383298,1716035443206,-500.0,0.00032876,2]
[327383300,1716035443216,-500.0,0.00032876,2]
[327383302,1716035443225,-3155.11,0.00032876,2]
[327383304,1716035443236,-500.0,0.00032876,2]
[327383306,1716035443246,-500.0,0.00032876,2]
[327383308,1716035443255,-500.0,0.00032876,2]
[327383309,1716035443264,-500.0,0.00032876,2]
[327383312,1716035443275,-500.0,0.00032876,2]
[327383313,1716035443285,-500.0,0.00032876,2]
[327383316,1716035443294,-4553.5,0.00032876,2]
[327383317,1716035443303,-500.0,0.00032876,2]
[327383320,1716035443313,-500.0,0.00032876,2]
[327383321,1716035443323,-500.0,0.00032876,2]
[327383323,1716035443332,-149.89918938,0.00032876,2]
[327383327,1716035443358,-350.10081062,0.00032876,2]
[327383329,1716035443367,-473.13161787,0.00032876,2]
[327383332,1716035443378,-26.86838213,0.00032876,2]
[327383334,1716035443388,-624.07,0.00032876,2]
[327383336,1716035443398,-514.16793315,0.00032876,2]
[327383338,1716035443407,-500.0,0.00032876,2]
[327383340,1716035443416,-500.0,0.00032876,2]
[327383342,1716035443425,-500.0,0.00032876,2]
[327383344,1716035443434,-3515.90288854,0.00032876,2]
[327383348,1716035443462,-60.31711146,0.00032876,2]
[327383350,1716035443471,-316.37944195,0.00032876,2]
[327383352,1716035443487,-183.62055805,0.00032876,2]
[327383354,1716035443497,-500.0,0.00032876,2]
[327383356,1716035443506,-500.0,0.00032876,2]
[327383358,1716035443515,-125.35401231,0.00032876,2]
[327383361,1716035443528,-374.64598769,0.00032876,2]
[327383363,1716035443537,-801.99482887,0.00032876,2]
[327383366,1716035443556,-318.04517113,0.00032876,2]
[327383368,1716035443565,-610.84,0.00032876,2]
[327383370,1716035443574,-206.4578417,0.00032876,2]
[327383372,1716035443585,-293.5421583,0.00032876,2]
[327383374,1716035443594,-144.13209786,0.00032876,2]
[327383377,1716035443620,-1966.54790214,0.00032876,2]
[327383380,1716035443630,-600.07,0.00032876,2]
[327383382,1716035443639,-500.0,0.00032876,2]
[327383384,1716035443649,-545.85,0.00032876,2]
[327383386,1716035443658,-2621.05,0.00032876,2]
[327383388,1716035443667,-532.15170267,0.00032876,2]
[327383390,1716035443679,-3758.25664519,0.00032876,2]
[327383393,1716035443695,-1888.37335481,0.00032876,2]
[327383395,1716035443708,-500.0,0.00032876,2]
[327383397,1716035443721,-500.0,0.00032876,2]
[327383400,1716035443734,-588.39,0.00032876,2]
[327383401,1716035443745,-500.0,0.00032876,2]
[327383402,1716035443755,-2618.06,0.00032876,2]
[327383403,1716035443767,-500.0,0.00032876,2]
[327383404,1716035443780,-500.0,0.00032876,2]
[327383405,1716035443792,-724.74,0.00032876,2]
[327383406,1716035443804,-1346.09,0.00032876,2]
[327383408,1716035443816,-500.0,0.00032876,2]
[327383410,1716035443829,-500.0,0.00032876,2]
[327383411,1716035443840,-500.0,0.00032876,2]
[327383412,1716035443851,-923.47,0.00032876,2]
[327383413,1716035443864,-1385.44,0.00032876,2]
[327383414,1716035443877,-500.0,0.00032876,2]
[327383415,1716035443890,-500.0,0.00032876,2]
[327383417,1716035443901,-500.0,0.00032876,2]
[327383419,1716035443912,-3011.3636676,0.00032876,2]
[327383435,1716035445965,-982.45050727,0.00025,2]
[327383436,1716035445979,-215.66041607,0.00025,2]
[327383437,1716035445991,-4200.48958393,0.00032875,2]
[327383438,1716035446038,-582.40041607,0.00032875,2]
[327383439,1716035446048,-1020.80559436,0.00032876,2]
[327383440,1716035446063,-444.84640445,0.00032876,2]
[327383441,1716035446076,-534.16021158,0.00032876,2]
[327383442,1716035446090,-525.88365412,0.00032876,2]
[327383443,1716035446123,-1284.1755862,0.00032223,2]
[327383444,1716035446137,-268.42229423,0.00032223,2]
[327383445,1716035446156,-467.83484058,0.00032876,2]
[327383446,1716035446170,-1428.50005517,0.00032876,2]
[327383447,1716035446185,-172.21557214,0.00032876,2]
[327383448,1716035446196,-708.46,0.00032876,2]
[327383449,1716035446209,-742.78,0.00032876,2]
[327383450,1716035446220,-500.0,0.00032876,2]
[327383451,1716035446235,-855.86,0.00032876,2]
[327383452,1716035446245,-500.0,0.00032876,2]